[Event "Leiden Chess Tournament"]
[Site "Leiden"]
[Date "2017.07.20"]
[Round "6"]
[White "Le Clercq, Maxim"]
[Black "Coiffait, Casimir"]
[Result "1/2-1/2"]
[ECO "A47"]
[WhiteElo "1906"]
[BlackElo "1853"]
[Annotator "NA RC"]
[PlyCount "139"]
[EventDate "2017.??.??"]
[EventCountry "NED"]
[SourceTitle "playchess.com"]
[Source "ChessBase"]
[SourceQuality "1"]
[TimeControl "40/5400+30:1800+30"]

{[%evp 13,131,-14,32767,32767,32767,7,32767,32767,0,-17,32767,32767,32767,32767,32767,-21,47,60,98,64,82,49,90,71,74,32767,32767,32767,32767,-74,-46,38,-50,-53,-63,-161,32767,-135,-137,-151,-97,32767,32767,32767,32767,32767,-40,-74,-13,32767,-13,-23,-25,32767,32767,32767,32767,-31,-20,32767,-134,-156,37,27,47,-235,13,28,24,31,39,45,46,0,0,0,87,32767,32767,32767,32767,32767,32767,32767,32767,32767,32767,32767,32767,32767,32767,32767,32767,32767,32767,32767,32767,32767,32767,32767,32767,32767,32767,43,5297,5051,5069,6156,5314,6029,12841,0,32767,32767,32767,32767,0,0,0,0]} 1. d4 {[%emt 0:00:00]} Nf6 {[%emt 0:00:07]} 2. Bf4 {[%emt 0:00:39]} e6 {[%emt 0:00:09]} 3. Nf3 {[%emt 0:00:49]} b6 {[%emt 0:00:40]} 4. e3 {[%emt 0:06:14]} Bb7 {[%emt 0:00:34]} 5. Bd3 {[%emt 0:01:15]} c5 {[%emt 0:00:09]} 6. c3 {[%emt 0:01:59]} Be7 {[%emt 0:00:20]} 7. Nbd2 {[%emt 0:01:05]} cxd4 {[%emt 0:00:08]} 8. exd4 {[%emt 0:01:04]} O-O {[%emt 0:00:30]} 9. h4 {[%emt 0:07:37] A47: 1 d4 Nf6 2 Nf3 b6: Torre, London and Colle Systems} d6 {[%emt 0:03:49]} 10. Qe2 {[%emt 0:03:42]} Nbd7 {[%emt 0:04:16]} 11. O-O-O {[%emt 0:08:51]} (11. Bg5 a6 12. Ne4 Bxe4 13. Bxe4 Nxe4 14. Qxe4 b5 15. O-O Nb6 16. Bxe7 Qxe7 {½-½ (56) Winants,L (2545)-Naiditsch,A (2709) Tromsoe 2014}) 11... Nd5 {[%emt 0:19:58]} 12. Bh2 $146 {[%emt 0:04:12]} ({Predecessor:} 12. Bg5 N7f6 13. Ne4 Rc8 14. Nxf6+ Bxf6 {0-1 (73) Pacheco,D (2312)-Palu,A (2170) Mina Clavero 2016}) 12... N7f6 {[%emt 0:01:43]} 13. Ng5 {[%emt 0:04:43]} b5 {[%emt 0:00:40]} 14. Kb1 {[%emt 0:01:48]} b4 {[%emt 0:02:50]} 15. c4 {[%emt 0:00:54]} Nb6 {[%emt 0:04:26]} 16. Bf4 {[%emt 0:07:40]} Nbd7 {[%emt 0:23:56]} ({Don't go for} 16... Bxg2 $2 17. Rhg1 $18) 17. Ndf3 {[%emt 0:07:34]} b3 {[%emt 0:10:45]} (17... Qb6 $14) 18. axb3 {[%emt 0:03:23]} Qb6 {[%emt 0:00:58]} 19. Rh3 {[%emt 0:07:28]} a5 {[%emt 0:10:24]} 20. Qc2 {[%emt 0:15:59]} h6 {[%emt 0:02:33]} 21. Nh7 {[%emt 0:02:33]} (21. Bd2 $11) 21... Nxh7 {[%emt 0:03:04]} 22. Bxh7+ {[%emt 0:00:02]} Kh8 {[%emt 0:00:06]} 23. Ng5 {[%emt 0:01:20]} Nf6 {[%emt 0:06:40]} ({But not} 23... Bxg2 $6 24. Rg3 $11) ({Don't blunder} 23... hxg5 $2 24. hxg5 g6 25. Bxg6+ Kg8 26. Rh7 $18) 24. Bd3 {[%emt 0:01:09]} (24. d5 $17) 24... a4 {[%emt 0:01:00]} 25. b4 {[%emt 0:05:58]} Qxb4 {[%emt 0:01:25]} 26. Bf1 {[%emt 0:02:07]} a3 {[%emt 0:01:29]} ({Better is} 26... Kg8 27. Bd2 Qb6) 27. Rb3 {[%emt 0:00:39]} a2+ {[%emt 0:00:04]} 28. Ka1 {[%emt 0:00:02]} Qa4 {[%emt 0:00:05]} 29. Qd3 {[%emt 0:02:33]} Bc6 {[%emt 0:01:33]} ({Black should play} 29... hxg5 $19 30. hxg5 Be4) 30. Be2 {[%emt 0:00:01]} Qa7 {[%emt 0:00:35]} (30... hxg5 31. hxg5 Be4 32. Rh1+ Kg8 33. Qh3 $18) (30... Kg8 $5 {[%cal Rh6g5]} 31. Nf3 Ne4 $17) 31. Rh1 {[%emt 0:00:42]} Qd7 {[%emt 0:00:27]} ({Better is} 31... Bxg2 $17 32. Rg1 Bc6) 32. Bd1 {[%emt 0:00:02]} Ba4 {[%emt 0:00:10]} (32... Bxg2 $2 33. Rg1 $19) 33. Ra3 {[%emt 0:00:58]} Bxd1 {[%emt 0:00:28]} 34. Rxa8 {[%emt 0:00:24]} Rxa8 {[%emt 0:00:01]} 35. Qxd1 {[%emt 0:01:20]} Kg8 {[%emt 0:00:54]} ({Don't blunder} 35... hxg5 $2 36. hxg5+ Kg8 37. gxf6 $18) 36. Qd3 {[%emt 0:00:24] [#]} e5 $1 {[%emt 0:00:51]} 37. Be3 {[%emt 0:00:40]} hxg5 $2 {[%emt 0:00:36]} (37... Qb7 $19 38. d5 Rb8) 38. hxg5 {[%emt 0:00:01]} e4 {[%emt 0:00:04]} 39. Qe2 $2 {[%emt 0:00:39]} (39. Qc2 $14 {was forced to keep a grip.}) 39... g6 $2 {[%emt 0:00:46]} ({Better is} 39... Ng4 $19 40. Bd2 Qe6) 40. gxf6 {[%emt 0:00:27]} Bxf6 {[%emt 0:30:04]} 41. g3 {[%emt 0:30:56]} Qa7 {[%emt 0:00:00]} 42. Qd2 {[%emt 0:00:00]} Qa4 {[%emt 0:00:00]} 43. Bg5 {[%emt 0:00:00]} Bg7 {[%emt 0:00:00]} 44. Bh6 {[%emt 0:00:00]} Bh8 {[%emt 0:00:00]} (44... Bf6 $11) 45. Bf8 {[%emt 0:00:00]} Kxf8 {[%emt 0:00:00]} 46. Rxh8+ {[%emt 0:00:00]} Ke7 {[%emt 0:00:00]} 47. Qg5+ {[%emt 0:00:00]} Kd7 {[%emt 0:00:00]} 48. Rxa8 {[%emt 0:00:00]} Qxa8 {[%emt 0:00:00]} 49. Qf6 {[%emt 0:00:00]} Qa4 {[%emt 0:00:23]} 50. Qxf7+ {[%emt 0:00:00]} Kd8 {[%emt 0:00:03]} 51. Qg8+ {[%emt 0:02:04]} Kd7 {[%emt 0:00:08]} 52. Qf7+ {[%emt 0:00:10]} Kd8 {[%emt 0:00:17]} 53. Qg8+ {[%emt 0:00:48]} Kd7 {[%emt 0:00:05]} 54. Qh7+ {[%emt 0:00:19]} Kd8 {[%emt 0:01:57]} 55. Qh4+ {[%emt 0:00:04]} Kd7 {[%emt 0:00:21]} 56. Qg4+ {[%emt 0:00:50]} Kc7 {[%emt 0:02:54]} 57. Qe2 {[%emt 0:00:01]} Qb3 {[%emt 0:00:31]} 58. Qd2 {[%emt 0:00:52]} ({But not} 58. Qxe4 $6 Qd1+ 59. Kxa2 Qa4+ 60. Kb1 Qd1+ 61. Ka2 Qa4+ 62. Kb1 Qd1+ 63. Ka2 $11) 58... Qxc4 $2 {[%emt 0:02:07]} (58... Kd7 $14) 59. Qc3 {[%emt 0:00:40]} d5 {[%emt 0:00:04]} 60. Qxc4+ {[%emt 0:00:06]} dxc4 {[%emt 0:00:04]} 61. Kxa2 {[%emt 0:00:14]} Kc6 {[%emt 0:00:08] [#]} 62. Kb1 $2 {[%emt 0:02:56]} ({Only move:} 62. b4 $1 $18 cxb3+ 63. Kxb3) 62... Kd5 {[%emt 0:00:08]} 63. Kc2 {[%emt 0:00:01]} Kxd4 {[%emt 0:00:09]} 64. Kd2 {[%emt 0:00:01]} g5 {[%emt 0:00:54]} 65. g4 {[%emt 0:02:27]} Kd5 {[%emt 0:00:20]} 66. Ke2 $11 {[%emt 0:00:33]} Ke6 {[%emt 0:02:09]} 67. Kd2 {[%emt 0:00:29]} Kd6 {[%emt 0:00:14]} 68. Ke2 {[%emt 0:00:26]} Ke6 {[%emt 0:00:43]} 69. Kd2 {[%emt 0:00:17]} Kd5 {[%emt 0:00:16]} 70. Ke2 {[%emt 0:00:07]} 1/2-1/2

[Event "Leiden Chess Tournament"]
[Site "Leiden"]
[Date "2017.07.20"]
[Round "6"]
[White "Oostvogels, Niek"]
[Black "Boeters, Stefan"]
[Result "0-1"]
[ECO "C24"]
[WhiteElo "1905"]
[BlackElo "1798"]
[Annotator "NA RC"]
[PlyCount "114"]
[EventDate "2017.??.??"]
[EventCountry "NED"]
[SourceTitle "playchess.com"]
[Source "ChessBase"]
[SourceQuality "1"]
[TimeControl "40/5400+30:1800+30"]

{[%evp 12,102,34,32767,32767,6,32767,0,0,0,32767,32767,-51,-45,-49,-43,32767,32767,-68,-75,-77,-75,-77,-84,-58,-60,-66,-88,-59,-89,32767,-85,-77,-88,-77,-85,32767,32767,32767,32767,32767,32767,32767,32767,32767,32767,32767,-99,32767,32767,-132,-194,-212,-227,-136,-112,-142,-149,-146,-150,-162,-137,-170,-145,-149,-149,-141,-152,-138,-141,-137,-204,-160,-187,-153,32767,32767,32767,32767,32767,-215,-204,-221,-214,-210,-209,-216,-209,-209,-221,-233,-239,-297]} 1. e4 {[%emt 0:00:00]} d6 {[%emt 0:07:47]} 2. Bc4 {[%emt 0:00:16]} Nf6 {[%emt 0:00:28]} 3. d3 {[%emt 0:00:28]} e5 {[%emt 0:00:28]} 4. Nf3 {[%emt 0:01:16]} Be7 {[%emt 0:01:00]} 5. O-O {[%emt 0:00:57]} O-O {[%emt 0:00:28]} 6. c3 {[%emt 0:02:43]} Nbd7 {[%emt 0:01:26] LiveBook: 5 Games C24: Bishop's Opening: 2...Nf6} (6... c6 7. Re1 Nbd7 8. Bb3 Nc5 9. Bc2 Bg4 10. Nbd2 Nfd7 11. h3 Bh5 12. Nf1 Ne6 13. Ng3 Bxf3 14. Qxf3 g6 15. Bh6 Re8 16. Rad1 Bg5 17. Bxg5 Qxg5 18. d4 {½-½ (55) Ghaem Maghami,E (2570)-Bu,X (2670) Moscow 2012}) 7. Nbd2 {[%emt 0:05:01]} c6 {[%emt 0:00:38]} 8. d4 {[%emt 0:06:43]} exd4 $146 {[%emt 0:01:34]} ({Predecessor:} 8... Qc7 9. dxe5 dxe5 10. a4 Nc5 11. Qe2 Nh5 12. Nb3 Ne6 13. Be3 Nef4 14. Qc2 Bg4 15. Ne1 Be6 16. Bxe6 Nxe6 {½-½ (16) Ganger,R (1991)-Richardt,M (2022) England 2015}) 9. cxd4 {[%emt 0:05:14]} Nxe4 {[%emt 0:02:47]} 10. Nxe4 {[%emt 0:09:01]} d5 {[%emt 0:00:19]} 11. Bd3 {[%emt 0:00:12]} dxe4 {[%emt 0:00:08]} 12. Bxe4 {[%emt 0:00:06]} Nf6 {[%emt 0:02:29]} 13. Bc2 {[%emt 0:03:31]} Bg4 {[%emt 0:05:51]} 14. Be3 {[%emt 0:07:26]} Qd5 {[%emt 0:04:04]} 15. Bb3 {[%emt 0:16:17]} Bxf3 {[%emt 0:01:19]} 16. Qxf3 {[%emt 0:00:06]} Qxf3 {[%emt 0:00:26]} 17. gxf3 {[%emt 0:00:05]} Rad8 {[%emt 0:03:12]} 18. Rad1 {[%emt 0:02:43]} Nd5 {[%emt 0:02:17]} 19. Rfe1 {[%emt 0:04:34]} Rfe8 {[%emt 0:02:42]} 20. Re2 {[%emt 0:02:19]} Bf6 {[%emt 0:03:21]} 21. Kf1 {[%emt 0:03:52]} Kf8 {[%emt 0:03:10]} 22. Rde1 {[%emt 0:04:29]} h6 {[%emt 0:07:40]} 23. Kg2 {[%emt 0:03:18]} Rd7 {[%emt 0:07:23]} 24. Kf1 {[%emt 0:05:28]} Bd8 {[%emt 0:02:00]} 25. Bd2 {[%emt 0:05:49]} Rxe2 {[%emt 0:05:21]} 26. Rxe2 {[%emt 0:00:08]} Bc7 {[%emt 0:01:24]} 27. h3 {[%emt 0:02:12]} Nf4 {[%emt 0:04:55]} 28. Bxf4 {[%emt 0:01:04]} Bxf4 {[%emt 0:01:16]} 29. d5 {[%emt 0:07:07]} cxd5 {[%emt 0:01:10]} 30. a4 {[%emt 0:00:43]} d4 {[%emt 0:04:26]} 31. Ke1 {[%emt 0:00:54]} (31. Rc2 $17) 31... d3 {[%emt 0:01:53]} 32. Re4 {[%emt 0:00:18]} Bc1 {[%emt 0:01:13]} ({Black should play} 32... g5 $19 33. Bc4 a6) 33. Bc4 {[%emt 0:00:44]} d2+ {[%emt 0:01:22]} 34. Kd1 {[%emt 0:00:01]} Bxb2 {[%emt 0:00:10]} 35. Bb5 {[%emt 0:01:12]} Rd8 {[%emt 0:00:36]} 36. Re3 {[%emt 0:00:35]} Bf6 {[%emt 0:03:57]} 37. Rd3 {[%emt 0:00:53] [#]} Rxd3 $1 {[%emt 0:01:49]} 38. Bxd3 {[%emt 0:00:02]} Bc3 {[%emt 0:00:55]} 39. Kc2 {[%emt 0:00:21]} Ke7 {[%emt 0:00:36]} 40. Be2 {[%emt 0:00:05]} Ba5 {[%emt 0:30:36]} 41. Kb3 {[%emt 0:30:22]} Kd6 {[%emt 0:00:22]} 42. Kc4 {[%emt 0:00:00]} Kc6 {[%emt 0:00:00]} 43. Bd1 {[%emt 0:00:00]} a6 {[%emt 0:00:00]} 44. Bc2 {[%emt 0:00:00]} b5+ {[%emt 0:00:00]} 45. Kd3 {[%emt 0:00:00]} Kc5 {[%emt 0:00:00]} 46. Bd1 {[%emt 0:00:00]} bxa4 {[%emt 0:00:00]} 47. Bxa4 {[%emt 0:00:00]} Kb4 {[%emt 0:00:00]} 48. Bd1 {[%emt 0:00:00]} Ka3 {[%emt 0:00:00]} 49. Kc2 {[%emt 0:00:00]} Bb4 {[%emt 0:00:00]} 50. Be2 {[%emt 0:00:00]} a5 {[%emt 0:00:00]} 51. Bb5 $19 {[%emt 0:00:00]} a4 {[%emt 0:00:00]} 52. Bc4 {[%emt 0:00:00]} d1=Q+ {[%emt 0:00:00]} 53. Kxd1 {[%emt 0:00:00]} Kb2 {[%emt 0:00:00]} 54. Bxf7 {[%emt 0:00:00]} a3 {[%emt 0:00:00]} 55. f4 {[%emt 0:00:00]} a2 {[%emt 0:00:00]} 56. Bxa2 {[%emt 0:00:00]} Kxa2 {[%emt 0:00:00]} 57. f5 {[%emt 0:00:00]} Be7 {[%emt 0:00:00]} 0-1

[Event "Leiden Chess Tournament"]
[Site "Leiden"]
[Date "2017.07.21"]
[Round "7"]
[White "Holwijn, Melvin"]
[Black "Van der Knaap, Jan"]
[Result "0-1"]
[ECO "A41"]
[WhiteElo "1932"]
[BlackElo "1866"]
[Annotator "NA"]
[PlyCount "46"]
[EventDate "2017.??.??"]
[EventCountry "NED"]
[SourceTitle "playchess.com"]
[Source "ChessBase"]
[SourceQuality "1"]
[TimeControl "40/5400+30:1800+30"]

1. d4 d6 2. Nf3 g6 3. c4 Bg7 4. Nc3 Bg4 5. e3 c5 6. Be2 cxd4 7. exd4 {A41: 1 d4 d6: Tartakower System and Modern Defence} Nh6 (7... Nc6 8. d5 Bxf3 9. Bxf3 Ne5 10. Be2 Rc8 11. Qb3 Qc7 12. O-O a6 13. Be3 h5 14. Bb6 Qb8 15. h3 Nh6 {1-0 (37) Korobov,A (2692)-Onischuk,V (2601) Doha 2016}) 8. h3 Bxf3 9. Bxf3 Nc6 10. g4 O-O 11. h4 $146 ({Predecessor:} 11. Be3 e5 12. dxe5 Nxe5 13. Bd5 Kh8 14. Qd2 Ng8 15. f4 Nc6 {1-0 (32) Svane,R (2367)-Danielsen,H (2511) Helsingor 2012}) 11... e5 12. Bxc6 bxc6 13. dxe5 Re8 14. Qe2 Bxe5 15. Be3 Qa5 16. O-O Qd8 17. g5 Nf5 18. Qg4 d5 19. Bf4 Qc7 20. Bxe5 Rxe5 21. cxd5 cxd5 22. Rae1 $1 Qd6 23. Qf4 $19 (23. Rxe5 $15 Qxe5 24. Qf3) 23... Rxe1 0-1

[Event "Leiden Chess Tournament"]
[Site "Leiden"]
[Date "2017.07.21"]
[Round "7"]
[White "Boeters, Stefan"]
[Black "Geboers, Jimmy"]
[Result "0-1"]
[ECO "A36"]
[WhiteElo "1798"]
[BlackElo "1852"]
[Annotator "NA"]
[PlyCount "104"]
[EventDate "2017.??.??"]
[EventCountry "NED"]
[SourceTitle "playchess.com"]
[Source "ChessBase"]
[SourceQuality "1"]
[TimeControl "40/5400+30:1800+30"]

{[%evp 34,91,116,32767,32767,32767,32767,58,73,115,100,91,207,210,285,-275,-221,-250,-267,-261,-258,-258,-263,-266,-181,-231,-113,32767,-10,32767,32767,32767,32767,32767,32767,32767,-357,-323,-347,-29991,-342,-2093,-254,-293,-301,-403,-339,-326,-370,-29989,-29990,-29990,-29991,-29991,-327,-341,-296,-453,-375,-364]} 1. c4 c5 2. g3 Nc6 3. Bg2 g6 4. Nc3 Bg7 5. e3 d6 6. Nge2 e5 7. O-O {A36: Symmetrical English vs ...g6: 4 Bg2 Bg7} f5 (7... Nge7 8. d3 O-O 9. b3 Be6 10. Nd5 e4 11. Rb1 exd3 12. Qxd3 Nxd5 13. cxd5 Ne5 14. Qc2 Bd7 15. h3 Bb5 16. Rd1 Bxe2 17. Qxe2 {0-1 (48) Markowski,T (2576)-Heberla,B (2573) Gorzow Wielkopolski 2014}) 8. f4 Nge7 9. a3 $146 ({Predecessor:} 9. Nd5 O-O 10. Nec3 a6 11. a3 Be6 12. Rb1 Rb8 13. b4 b5 14. cxb5 axb5 15. Nxe7+ Nxe7 16. bxc5 dxc5 {0-1 (30) Dzyuba,A-Sadovnikov,I Russia 2004}) 9... Be6 10. d3 O-O 11. Rb1 a5 12. b3 d5 13. fxe5 Bxe5 14. d4 cxd4 15. exd4 Bg7 16. c5 b6 17. b4 axb4 18. axb4 bxc5 19. bxc5 f4 20. Rxf4 Rxf4 21. Bxf4 Nf5 22. Nb5 Qf6 (22... Qd7 $16 {was necessary.} 23. Ra1 Rxa1 24. Qxa1 h6) 23. Nc7 Rd8 {[#]} 24. Bg5 $4 (24. Rb6 $1 $18 {[%cal Rb6c6] was the only winning move.} Ncxd4 25. Kh1 Nxe2 26. Nxe6 (26. Rxe6 Nc3 $18) 26... Nxf4 27. Nxd8 (27. Nxf4 Qc3 $16) 27... Qxd8 28. gxf4) 24... Qxg5 25. Nxe6 Qe3+ 26. Kh1 Qxe6 27. Nf4 Qf7 28. Qb3 Nce7 ({Weaker is} 28... Bxd4 29. Bxd5 Rxd5 30. Qxd5 $15) 29. Qb6 Rc8 (29... Re8 $19 30. Ne6 Kh8 31. Nxg7 Qxg7) 30. Qb7 Qe8 ({Of course not} 30... Bxd4 $6 31. Bxd5 Nxd5 32. Qxc8+ Kg7 33. Ne6+ Kh6 34. Nxd4 $11) ({But not} 30... Nxd4 $6 {[#]} 31. Qxc8+ $1 {[%mdl 512]} Nxc8 32. Bxd5 $11) (30... Re8 $17 31. c6 Bxd4) 31. Nxd5 Nxd5 32. Bxd5+ Kh8 33. c6 Bxd4 34. c7 Kg7 35. Bc6 Qe6 36. Bd5 $2 {[#]} (36. Bg2 $19) 36... Qd7 $2 (36... Nxg3+ $1 {[%mdl 512] mates} 37. Kg2 (37. hxg3 Qh3#) 37... Qe2+ 38. Kh3 {[#]} Nf1 $1 {[%mdl 512]} 39. Qb2 Qh5+ 40. Kg2 Qxd5+ 41. Kxf1 Qf3+ 42. Ke1 Re8+ 43. Kd2 Re2+ 44. Kd1 Qf1#) 37. Rc1 $2 {[#]} (37. Bc6 Qd6 38. Be4 Rxc7 39. Qxc7+ Qxc7 40. Rb7 Qxb7 41. Bxb7) 37... Nd6 $2 (37... Nxg3+ $1 {[%mdl 512]} 38. Kg2 (38. hxg3 Qh3#) 38... Ne2) 38. Qb4 Bf6 39. Rc6 Ne8 40. Bf3 Rxc7 41. Rb6 $2 (41. Rxc7 $19 Nxc7 42. Kg2) 41... Rc1+ 42. Kg2 Rc2+ 43. Kh1 Qd2 $2 (43... Qh3 {mates} 44. Rb7+ Kh6 45. Qf4+ g5 46. Rxh7+ Kxh7 47. Qe4+ Kg7 48. Qg6+ Kxg6 49. Be4+ Kh6 50. Kg1 Rxh2 51. Bf3 Bd4#) 44. Qxd2 Rxd2 45. h4 Bd4 46. Rb7+ $19 Kf8 47. h5 Nf6 48. hxg6 hxg6 49. g4 Rb2 50. Rc7 Rf2 51. Rc4 Rxf3 52. Rxd4 Rg3 0-1

[Event "Leiden Chess Tournament"]
[Site "Leiden"]
[Date "2017.07.22"]
[Round "8"]
[White "Ypma, Peter"]
[Black "Kuipers, Stefan"]
[Result "1/2-1/2"]
[ECO "A01"]
[WhiteElo "2283"]
[BlackElo "2388"]
[Annotator "NA"]
[PlyCount "34"]
[EventDate "2017.??.??"]
[EventCountry "NED"]
[SourceTitle "playchess.com"]
[Source "ChessBase"]
[SourceQuality "1"]
[TimeControl "40/5400+30:1800+30"]

{[%evp 8,32,-2,-6,32767,32767,0,21,27,24,16,7,25,4,35,28,30,18,32767,32767,24,14,7,25,20,-14,12]} 1. b3 e5 2. Bb2 Nc6 3. e3 Nf6 4. Bb5 Bd6 5. Ne2 {LiveBook: 112 Games} O-O {A01: Nimzowitsch-Larsen Opening} (5... a6 6. Bxc6 dxc6 7. d3 Qe7 8. Nd2 Be6 9. a4 O-O-O 10. a5 h5 11. Ra4 h4 12. h3 Nd7 13. Qa1 {0-1 (58) Rapport,R (2694)-Riazantsev,A (2654) Geneve 2017}) 6. O-O e4 7. Ng3 Be5 8. Bxe5 $146 ({Predecessor:} 8. Qc1 Re8 9. d4 exd3 10. cxd3 Ng4 11. Bxe5 Ncxe5 12. d4 Ng6 13. Nd2 {½-½ (30) Sundararajan,K (2424)-Wichmann,C (2361) Dresden 2014}) 8... Nxe5 9. d4 exd3 10. cxd3 d5 11. d4 Ng6 12. Be2 Re8 13. Nd2 Qd6 14. Rc1 c6 15. Qc2 Bg4 16. Qc5 Qd7 $11 17. b4 Bxe2 1/2-1/2

[Event "Leiden Chess Tournament"]
[Site "Leiden"]
[Date "2017.07.22"]
[Round "8"]
[White "Le Clercq, Maxim"]
[Black "Geboers, Jimmy"]
[Result "1-0"]
[ECO "C02"]
[WhiteElo "1906"]
[BlackElo "1852"]
[Annotator "NA"]
[PlyCount "75"]
[EventDate "2017.??.??"]
[EventCountry "NED"]
[SourceTitle "playchess.com"]
[Source "ChessBase"]
[SourceQuality "1"]
[TimeControl "40/5400+30:1800+30"]

1. e4 e6 2. d4 d5 3. e5 c5 4. c3 Nc6 5. Nf3 Qb6 6. a3 a5 7. a4 {LiveBook: 3 Games} cxd4 8. cxd4 Bb4+ 9. Nc3 Nge7 10. Bd3 Bd7 11. Be3 $11 Ng6 12. O-O Ngxe5 13. dxe5 d4 14. Nxd4 Nxd4 15. Bb5 Bc5 16. Bxd7+ Kxd7 17. Nb5 Rhd8 18. Bxd4 Bxd4 19. Qxd4+ Qxd4 20. Nxd4 Ke7 21. Nb5 Rd2 22. Rac1 Rad8 23. Rc7+ R8d7 24. Rfc1 Rxb2 25. g3 Rb4 26. Rxd7+ Kxd7 27. Rc7+ Ke8 28. Rxb7 Rxa4 29. Nd6+ Kf8 30. Rxf7+ Kg8 31. Re7 h6 32. Re8+ Kh7 33. Rxe6 Ra1+ 34. Kg2 a4 35. Nf5 a3 36. Ra6 a2 37. Ne3 Kg8 38. Nc2 1-0

[Event "Leiden Chess Tournament"]
[Site "Leiden"]
[Date "2017.07.22"]
[Round "8"]
[White "Van der Knaap, Jan"]
[Black "Coiffait, Casimir"]
[Result "0-1"]
[ECO "C02"]
[WhiteElo "1866"]
[BlackElo "1853"]
[Annotator "NA"]
[PlyCount "94"]
[EventDate "2017.??.??"]
[EventCountry "NED"]
[SourceTitle "playchess.com"]
[Source "ChessBase"]
[SourceQuality "1"]
[TimeControl "40/5400+30:1800+30"]

1. e4 e6 2. d4 d5 3. e5 c5 4. c3 Nc6 5. Nf3 Bd7 6. a3 f6 7. Bd3 fxe5 {LiveBook: 54 Games} 8. Nxe5 Nxe5 9. dxe5 g6 10. O-O Nh6 11. Nd2 Nf7 $14 12. f4 Bg7 13. Nf3 Qc7 14. Be3 O-O-O 15. b4 c4 16. Bc2 g5 17. Qe2 gxf4 18. Bxf4 Rdf8 19. Rae1 Qd8 20. Qe3 Kb8 21. Nd4 h5 22. Bg6 Nh6 23. h3 h4 24. Bg5 Qc8 25. Rf4 Be8 26. Bc2 Nf7 27. Bf6 Bh6 28. Bxh8 Rxh8 29. Qf2 Bxf4 30. Qxf4 Qd7 31. Rf1 Qe7 32. Bg6 Nd8 33. Qf6 Qxf6 34. Rxf6 Bxg6 35. Rxg6 Rh5 36. Nxe6 Nxe6 37. Rxe6 Kc7 38. Kf2 Rg5 39. Re7+ Kc6 40. Rh7 Rf5+ 41. Kg1 Rf4 42. Rh6+ Kc7 43. Rd6 d4 44. cxd4 c3 45. Rd5 b6 46. e6 c2 47. Rd7+ Kc8 0-1

[Event "Leiden Chess Tournament"]
[Site "Leiden"]
[Date "2017.07.23"]
[Round "9"]
[White "Warmerdam, Max"]
[Black "De Rover, Yong Hoon"]
[Result "0-1"]
[ECO "B90"]
[WhiteElo "2357"]
[BlackElo "2385"]
[Annotator "NA"]
[PlyCount "66"]
[EventDate "2017.??.??"]
[EventCountry "NED"]
[SourceTitle "playchess.com"]
[Source "ChessBase"]
[SourceQuality "1"]
[TimeControl "40/5400+30:1800+30"]

1. e4 c5 2. Nf3 d6 3. d4 cxd4 4. Nxd4 Nf6 5. Nc3 a6 6. Be3 e5 7. Nb3 Be6 8. f3 h5 9. Qd2 Nbd7 10. Nd5 {B90: Sicilian Najdorf: Unusual White 6th moves, 6 Be3 Ng4 and 6 Be3 e5} Bxd5 11. exd5 g6 12. Be2 (12. O-O-O Nb6 13. Qa5 Bh6 14. Bxh6 Rxh6 15. Qd2 Rh8 16. f4 exf4 17. Qxf4 {½-½ (57) Ponomariov,R (2699)-Wang,H (2698) Danzhou 2017}) 12... Bg7 13. c4 b6 14. O-O O-O {LiveBook: 19 Games} 15. Rac1 a5 16. Na1 Nc5 17. Nc2 Qd7 $146 ({Predecessor:} 17... Nfd7) 18. Na3 e4 19. Nb5 exf3 20. Bxf3 Ng4 21. Bxg4 hxg4 22. Bf4 Ne4 23. Qe3 f5 24. Qxb6 Rfd8 25. Rc2 g5 26. Be3 {[#]} Rdc8 (26... f4 $1 $19 27. Bd4 g3) 27. Rfc1 f4 $15 28. Bd4 Rab8 29. Qa6 g3 30. hxg3 fxg3 31. Bxg7 Qxg7 32. Re1 Qh7 33. Rxe4 Rf8 0-1

[Event "Leiden Chess Tournament"]
[Site "Leiden"]
[Date "2017.07.23"]
[Round "9"]
[White "Holwijn, Melvin"]
[Black "Le Clercq, Maxim"]
[Result "1-0"]
[ECO "D46"]
[WhiteElo "1932"]
[BlackElo "1906"]
[Annotator "NA"]
[PlyCount "150"]
[EventDate "2017.??.??"]
[EventCountry "NED"]
[SourceTitle "playchess.com"]
[Source "ChessBase"]
[SourceQuality "1"]
[TimeControl "40/5400+30:1800+30"]

1. d4 d5 2. Nf3 Nf6 3. c4 e6 4. Nc3 c6 5. e3 Nbd7 6. Bd3 Bd6 7. O-O O-O 8. e4 dxe4 9. Nxe4 Nxe4 10. Bxe4 f5 11. Bc2 Nf6 12. Re1 Qc7 13. c5 Bf4 14. Ne5 Bxe5 15. dxe5 Nd5 16. g4 fxg4 17. Qxg4 Qf7 18. Qh4 h6 19. Re4 Qg6+ 20. Kh1 Qf5 21. Bxh6 Qxf2 22. Bxg7 Qxh4 23. Rxh4 Rf4 24. Rg1 Rxh4 25. Bf6+ Kf8 26. Bxh4 b6 27. Rf1+ Kg7 28. cxb6 axb6 29. Rg1+ Kf8 30. a3 Ra7 31. Bg5 Ba6 32. Bh6+ Ke8 33. Rg8+ Kd7 34. Bg5 Rb7 35. h4 Ne7 36. Bxe7 Kxe7 37. Bd3 Kf7 38. Bxa6 Ra7 39. Rc8 Rxa6 40. Rxc6 Ra4 41. Rxb6 Rxh4+ 42. Kg2 Re4 43. Rb5 Ke7 44. Kf3 Re1 45. b4 Kd7 46. a4 Kc6 47. Kf4 Re2 48. Kg5 Rf2 49. Ra5 Kb6 50. Kg6 Rf4 51. Rb5+ Kc6 52. Rb8 Kc7 53. Rb5 Kc6 54. Rc5+ Kd7 55. Rb5 Kc6 56. Kg5 Rf5+ 57. Kg4 Rf1 58. Rc5+ Kb7 59. a5 Rb1 60. b5 Ra1 61. a6+ Kb6 62. Rc6+ Kxb5 63. Rxe6 Kc5 64. Rd6 Rf1 65. a7 Ra1 66. Rd7 Kc6 67. e6 Ra5 68. Rf7 Kd6 69. e7 Kd7 70. Rh7 Ra4+ 71. Kf5 Ra5+ 72. Kf6 Ra6+ 73. Kf7 Rxa7 74. e8=Q+ Kd6+ 75. Kg8 Kd5 1-0

[Event "Leiden Chess Tournament"]
[Site "Leiden"]
[Date "2017.07.23"]
[Round "9"]
[White "Coiffait, Casimir"]
[Black "Thibaut-Coignec, Leopold"]
[Result "1-0"]
[ECO "D05"]
[WhiteElo "1853"]
[BlackElo "1648"]
[Annotator "NA"]
[PlyCount "55"]
[EventDate "2017.??.??"]
[EventCountry "NED"]
[SourceTitle "playchess.com"]
[Source "ChessBase"]
[SourceQuality "1"]
[TimeControl "40/5400+30:1800+30"]

1. d4 d5 2. Nf3 Nf6 3. e3 e6 4. Bd3 c5 5. b3 Nc6 6. Bb2 Bd6 7. O-O O-O 8. Ne5 Qc7 9. f4 b6 10. dxc5 Bxc5 11. Nxc6 Bxe3+ 12. Kh1 Qxc6 13. Bxf6 e5 14. Bxe5 Bb7 15. Qf3 d4 16. Qxc6 Bxc6 17. c3 dxc3 18. Nxc3 Rfd8 19. Be4 Rac8 20. Bxc6 Rxc6 21. Rad1 Rxd1 22. Rxd1 Rc8 23. Nd5 Bc5 24. b4 Bf8 25. f5 Rd8 26. Nf6+ gxf6 27. Rxd8 fxe5 28. f6 1-0